fUST/lending_fUST_20240715
["ID","MTS","AMOUNT","RATE_DAILY","PERIOD"]
[332205435,1721033463511,-326.779574,0.0002673,7]
[332205436,1721033463520,-442.516801,0.0002673,7]
[332205437,1721033463530,-442.516799,0.0002673,7]
[332205438,1721033463539,-1061.766511,0.0002673,7]
[332205439,1721033463548,-1061.766515,0.0002673,7]
[332205440,1721033463557,-457.989968,0.0002673,7]
[332205441,1721033463568,-457.989977,0.0002673,7]
[332205442,1721033463577,-160.0,0.0002673,6]
[332205443,1721033463588,-162.51165109,0.0002673,5]
[332205444,1721033463598,-927.94601428,0.00026734,2]
[332205445,1721033463608,-3000.0,0.0002674,2]
[332205446,1721033463617,-927.94601428,0.00026748,2]
[332205447,1721033463626,-3000.0,0.0002675,2]
[332205448,1721033463635,-3000.0,0.0002676,2]
[332205449,1721033463644,-3000.0,0.0002677,2]
[332205450,1721033463654,-3000.0,0.0002678,2]
[332205451,1721033463666,-3000.0,0.0002679,2]
[332205452,1721033463744,-374.0,0.000268,2]
[332205453,1721033463755,-246032.44412885,0.000268,2]
[332205454,1721033463764,-304436.68401756,0.000268,2]
[332205455,1721033463773,-748.0,0.000268,2]
[332205456,1721033463782,-748.0,0.000268,2]
[332205457,1721033463792,-165.191516,0.000268,2]
[332205458,1721033463802,-165.191516,0.000268,2]
[332205459,1721033463811,-413.556163,0.000268,7]
[332205460,1721033463821,-413.556163,0.000268,7]
[332205461,1721033463830,-165.977123,0.000268,7]
[332205462,1721033463840,-165.977123,0.000268,7]
[332205463,1721033463850,-3000.0,0.000268,2]
[332205464,1721033463860,-242.981211,0.000268,7]
[332205465,1721033463870,-242.981211,0.000268,7]
[332205466,1721033463880,-165.088209,0.000268,7]
[332205467,1721033463889,-165.088209,0.000268,7]
[332205468,1721033463899,-152.82118,0.000268,7]
[332205469,1721033463908,-152.82118,0.000268,7]
[332205470,1721033463918,-151.0,0.000268,7]
[332205471,1721033463928,-299.603066,0.000268,7]
[332205472,1721033463939,-299.603066,0.000268,7]
[332205473,1721033463948,-150.201898,0.000268,2]
[332205474,1721033463959,-151.0,0.000268,7]
[332205475,1721033463970,-811.866382,0.000268,2]
[332205476,1721033463979,-153.320863,0.000268,7]
[332205477,1721033463989,-811.866382,0.000268,2]
[332205478,1721033463999,-1017.296106,0.000268,2]
[332205479,1721033464008,-158.10073004,0.00026806,2]
[332205480,1721033464019,-3000.0,0.0002681,2]
[332205481,1721033464028,-3000.0,0.0002682,2]
[332205482,1721033464038,-3000.0,0.0002683,2]
[332205483,1721033464048,-3000.0,0.0002684,2]
[332205484,1721033464058,-2121.71472377,0.00026848,2]
[332205485,1721033464068,-207.12232712,0.00026849,2]
[332205486,1721033464078,-708.24,0.00026849,4]
[332205487,1721033464088,-500.0,0.00026849,2]
[332205488,1721033464097,-500.0,0.00026849,2]
[332205489,1721033464109,-500.0,0.00026849,2]
[332205490,1721033464119,-501.98,0.00026849,2]
[332205491,1721033464129,-500.0,0.00026849,2]
[332205492,1721033464139,-702.26,0.00026849,2]
[332205493,1721033464150,-650.16,0.00026849,2]
[332205494,1721033464161,-715.41,0.00026849,2]
[332205495,1721033464172,-621.7,0.00026849,2]
[332205496,1721033464183,-500.0,0.00026849,2]
[332205497,1721033464194,-1392.42,0.00026849,2]
[332205498,1721033464204,-500.0,0.00026849,2]
[332205499,1721033464214,-500.0,0.00026849,2]
[332205500,1721033464224,-791.68,0.00026849,2]
[332205501,1721033464233,-500.0,0.00026849,2]
[332205502,1721033464243,-500.0,0.00026849,2]
[332205503,1721033464253,-847.82,0.00026849,2]
[332205504,1721033464264,-500.0,0.00026849,2]
[332205505,1721033464276,-500.0,0.00026849,2]
[332205506,1721033464288,-1832.53,0.00026849,2]
[332205507,1721033464298,-2808.39,0.00026849,2]
[332205508,1721033464308,-845.85,0.00026849,2]
[332205509,1721033464318,-1426.61,0.00026849,2]
[332205510,1721033464328,-2773.2,0.00026849,2]
[332205511,1721033464338,-500.0,0.00026849,2]
[332205512,1721033464348,-500.0,0.00026849,2]
[332205513,1721033464365,-500.0,0.00026849,2]
[332205514,1721033464376,-500.0,0.00026849,2]
[332205515,1721033464385,-500.0,0.00026849,2]
[332205516,1721033464396,-500.0,0.00026849,2]
[332205517,1721033464406,-601.884997,0.00026849,2]
[332205518,1721033464416,-527.72873348,0.00026849,2]
[332205519,1721033464426,-527.44450704,0.00026849,2]
[332205520,1721033464437,-500.0,0.00026849,2]
[332205521,1721033464447,-841.56,0.00026849,2]
[332205522,1721033464457,-500.0,0.00026849,2]
[332205523,1721033464468,-500.0,0.00026849,2]
[332205524,1721033464479,-3850.77,0.00026849,2]
[332205525,1721033464490,-500.0,0.00026849,2]
[332205526,1721033464500,-500.0,0.00026849,2]
[332205527,1721033464510,-500.0,0.00026849,2]
[332205528,1721033464519,-500.0,0.00026849,2]
[332205529,1721033464530,-500.0,0.00026849,2]
[332205530,1721033464540,-500.0,0.00026849,2]
[332205531,1721033464550,-664.91,0.00026849,2]
[332205532,1721033464560,-1626.76,0.00026849,2]
[332205533,1721033464570,-500.0,0.00026849,2]
[332205534,1721033464581,-765.72,0.00026849,2]
[332205535,1721033464591,-609.72,0.00026849,2]
[332205536,1721033464601,-500.0,0.00026849,2]
[332205537,1721033464618,-500.0,0.00026849,2]
[332205538,1721033464630,-21833.04,0.00026849,2]
[332205539,1721033464641,-500.0,0.00026849,2]
[332205540,1721033464654,-500.0,0.00026849,2]
[332205541,1721033464666,-500.0,0.00026849,2]
[332205542,1721033464676,-2439.81,0.00026849,2]
[332205543,1721033464685,-510.98,0.00026849,2]
[332205544,1721033464697,-500.0,0.00026849,2]
[332205545,1721033464707,-500.0,0.00026849,2]
[332205546,1721033464716,-500.0,0.00026849,2]
[332205547,1721033464729,-500.0,0.00026849,2]
[332205548,1721033464740,-500.0,0.00026849,2]
[332205549,1721033464750,-4417.13,0.00026849,2]
[332205550,1721033464760,-500.0,0.00026849,2]
[332205551,1721033464770,-1034.76,0.00026849,2]
[332205552,1721033464780,-500.0,0.00026849,2]
[332205553,1721033464790,-780.19,0.00026849,2]
[332205554,1721033464799,-4687.31,0.00026849,2]
[332205555,1721033464809,-1264.1,0.00026849,2]
[332205556,1721033464819,-500.0,0.00026849,2]
[332205557,1721033464829,-1390.09,0.00026849,2]
[332205558,1721033464838,-500.0,0.00026849,2]
[332205559,1721033464848,-500.0,0.00026849,2]
[332205560,1721033464862,-561.78,0.00026849,2]
[332205561,1721033464872,-500.0,0.00026849,2]
[332205562,1721033464881,-500.0,0.00026849,2]
[332205563,1721033464891,-500.0,0.00026849,2]
[332205564,1721033464900,-500.0,0.00026849,2]
[332205565,1721033464911,-2212.25,0.00026849,2]
[332205566,1721033464921,-500.0,0.00026849,2]
[332205567,1721033464931,-500.0,0.00026849,2]
[332205568,1721033464941,-151.0,0.00026849,7]
[332205569,1721033464951,-201.19161,0.00026849,7]
[332205570,1721033464961,-153.0,0.00026849,2]
[332205571,1721033464971,-153.0,0.00026849,2]
[332205572,1721033464980,-153.0,0.00026849,2]
[332205573,1721033464990,-153.0,0.00026849,2]
[332205574,1721033464999,-500.0,0.0002685,2]
[332205575,1721033465009,-500.0,0.0002685,2]
[332205576,1721033465018,-500.0,0.0002685,2]
[332205577,1721033465029,-500.0,0.0002685,2]
[332205578,1721033465038,-500.0,0.0002685,2]
[332205579,1721033465048,-491.02113444,0.0002685,2]
[332205580,1721033465058,-3000.0,0.0002685,2]
[332205581,1721033465068,-3000.0,0.0002686,2]
[332205582,1721033465079,-3000.0,0.0002687,2]
[332205583,1721033465159,-399.96117285,0.00026878,2]
[332205584,1721033465170,-3000.0,0.0002688,2]
[332205585,1721033465180,-815.5237345,0.00026889,2]
[332205586,1721033465190,-152.66982668,0.00026889,2]
[332205587,1721033465200,-3000.0,0.0002689,2]
[332205588,1721033465210,-399.96117285,0.00026899,2]
[332205589,1721033465219,-3000.0,0.000269,2]
[332205590,1721033465229,-3000.0,0.0002691,2]
[332205591,1721033465238,-3000.0,0.0002692,2]
[332205592,1721033465247,-215.5,0.00026927,2]
[332205593,1721033465257,-151.0,0.00026927,2]
[332205594,1721033465267,-3000.0,0.0002693,2]
[332205595,1721033465276,-152.66982668,0.00026933,2]
[332205596,1721033465286,-3000.0,0.0002694,2]
[332205597,1721033465296,-154.59445059,0.00026947,2]
[332205598,1721033465306,-3000.0,0.0002695,2]
[332205599,1721033465315,-3000.0,0.0002696,2]
[332205600,1721033465325,-3626.129056,0.0002697,2]
[332205601,1721033465335,-2500.0,0.00027,2]
[332205602,1721033465344,-500.0,0.00027,120]
[332205603,1721033465354,-1000.0,0.00027,27]
[332205604,1721033465367,-399.96117285,0.00027103,2]
[332205605,1721033465376,-165.191516,0.00027122,2]
[332205606,1721033465386,-165.191516,0.00027122,2]
[332205607,1721033465396,-413.556163,0.00027122,7]
[332205608,1721033465405,-413.556163,0.00027122,7]
[332205609,1721033465415,-165.977123,0.00027122,7]
[332205610,1721033465424,-165.977123,0.00027122,7]
[332205611,1721033465434,-242.981211,0.00027122,7]
[332205612,1721033465443,-242.981207,0.00027122,7]
[332205613,1721033465453,-165.088209,0.00027122,7]
[332205614,1721033465463,-165.08821,0.00027122,7]
[332205615,1721033465473,-152.82118,0.00027122,7]
[332205616,1721033465483,-152.821189,0.00027122,7]
[332205617,1721033465492,-151.0,0.00027122,7]
[332205618,1721033465502,-708.24,0.00027123,4]
[332205619,1721033465511,-500.0,0.00027123,2]
[332205620,1721033465521,-443.5020477,0.00027123,2]
[332205621,1721033465530,-500.0,0.00027123,2]
[332205622,1721033465540,-501.98,0.00027123,2]
[332205623,1721033465549,-500.0,0.00027123,2]
[332205624,1721033465559,-702.26,0.00027123,2]
[332205625,1721033465569,-650.16,0.00027123,2]
[332205626,1721033465579,-715.41,0.00027123,2]
[332205627,1721033465588,-621.7,0.00027123,2]
[332205628,1721033465598,-500.0,0.00027123,2]
[332205629,1721033465609,-1392.42,0.00027123,2]
[332205630,1721033465618,-500.0,0.00027123,2]
[332205631,1721033465628,-378.94033317,0.00027123,2]
[332205632,1721033465638,-791.68,0.00027123,2]
[332205633,1721033465648,-345.54289741,0.00027123,2]
[332205634,1721033465660,-500.0,0.00027123,2]
[332205635,1721033465670,-847.82,0.00027123,2]
[332205636,1721033465679,-299.603066,0.00027123,7]
[332205637,1721033465690,-299.603063,0.00027123,7]
[332205638,1721033465700,-191.93,0.00027123,2]
[332205639,1721033465710,-500.0,0.00027123,2]
[332205640,1721033465720,-1832.53,0.00027123,2]
[332205641,1721033465730,-151.0,0.00027123,7]
[332205642,1721033465742,-811.866382,0.00027123,2]
[332205643,1721033465751,-811.866387,0.00027123,2]
[332205644,1721033465760,-2808.39,0.00027123,2]
[332205645,1721033465770,-845.85,0.00027123,2]
[332205646,1721033465779,-1426.61,0.00027123,2]
[332205647,1721033465789,-2773.2,0.00027123,2]
[332205648,1721033465798,-500.0,0.00027123,2]
[332205649,1721033465808,-500.0,0.00027123,2]
[332205650,1721033465818,-500.0,0.00027123,2]
[332205651,1721033465828,-500.0,0.00027123,2]
[332205652,1721033465838,-500.0,0.00027123,2]
[332205653,1721033465848,-500.0,0.00027123,2]
[332205654,1721033465859,-841.56,0.00027123,2]
[332205655,1721033465869,-500.0,0.00027123,2]
[332205656,1721033465879,-500.0,0.00027123,2]
[332205657,1721033465889,-3850.77,0.00027123,2]
[332205658,1721033465899,-500.0,0.00027123,2]
[332205659,1721033465909,-500.0,0.00027123,2]
[332205660,1721033465920,-500.0,0.00027123,2]
[332205661,1721033465930,-500.0,0.00027123,2]
[332205662,1721033465940,-500.0,0.00027123,2]
[332205663,1721033465950,-500.0,0.00027123,2]
[332205664,1721033465960,-664.91,0.00027123,2]
[332205665,1721033465970,-1626.76,0.00027123,2]
[332205666,1721033465979,-500.0,0.00027123,2]
[332205667,1721033465990,-765.72,0.00027123,2]
[332205668,1721033465999,-609.72,0.00027123,2]
[332205669,1721033466009,-397.25568511,0.00027123,2]
[332205670,1721033466019,-468.96113482,0.00027123,2]
[332205671,1721033466029,-21833.04,0.00027123,2]
[332205672,1721033466039,-339.53442985,0.00027123,2]
[332205673,1721033466048,-516.14284265,0.00027123,2]
[332205674,1721033466058,-500.0,0.00027123,2]
[332205675,1721033466068,-2439.81,0.00027123,2]
[332205676,1721033466078,-510.98,0.00027123,2]
[332205677,1721033466089,-500.0,0.00027123,2]
[332205678,1721033466099,-500.0,0.00027123,2]
[332205679,1721033466110,-500.0,0.00027123,2]
[332205680,1721033466120,-500.0,0.00027123,2]
[332205681,1721033466129,-500.0,0.00027123,2]
[332205682,1721033466139,-4417.13,0.00027123,2]
[332205683,1721033466149,-500.0,0.00027123,2]
[332205684,1721033466159,-1034.76,0.00027123,2]
[332205685,1721033466170,-611.81851223,0.00027123,2]
[332205686,1721033466180,-780.19,0.00027123,2]
[332205687,1721033466190,-4687.31,0.00027123,2]
[332205688,1721033466200,-1264.1,0.00027123,2]
[332205689,1721033466209,-1390.09,0.00027123,2]
[332205690,1721033466219,-500.0,0.00027123,2]
[332205691,1721033466228,-500.0,0.00027123,2]
[332205692,1721033466238,-561.78,0.00027123,2]
[332205693,1721033466247,-500.0,0.00027123,2]
[332205694,1721033466256,-441.74916312,0.00027123,2]
[332205695,1721033466266,-500.0,0.00027123,2]
[332205696,1721033466277,-500.0,0.00027123,2]
[332205697,1721033466287,-2212.25,0.00027123,2]
[332205698,1721033466297,-500.0,0.00027123,2]
[332205699,1721033466307,-187.96718893,0.00027123,2]
[332205700,1721033466318,-171.5352576,0.00027123,2]
[332205701,1721033466327,-815.5237345,0.00027174,2]
[332205702,1721033466337,-152.66982668,0.00027178,2]
[332205703,1721033466414,-399.96117285,0.0002718,2]
[332205704,1721033466425,-263.979324,0.00027195,2]
[332205705,1721033466435,-927.94601428,0.00027219,2]
[332205706,1721033466444,-399.96117285,0.0002727,2]
[332205707,1721033466454,-152.66982668,0.00027271,2]
[332205708,1721033466464,-399.96117285,0.00027282,2]
[332205709,1721033466474,-153.0,0.00027342,2]
[332205710,1721033466484,-153.0,0.00027342,2]
[332205711,1721033466493,-153.0,0.00027342,2]
[332205712,1721033466502,-153.0,0.00027342,2]
[332205713,1721033466511,-153.0,0.00027342,2]
[332205714,1721033466520,-156.4544038,0.00027342,2]
[332205715,1721033466529,-152.66982668,0.00027384,2]
[332205716,1721033466538,-708.24,0.00027397,4]
[332205717,1721033466548,-500.0,0.00027397,2]
[332205718,1721033466558,-165.191516,0.00027397,2]
[332205719,1721033466567,-165.191516,0.00027397,2]
[332205720,1721033466577,-500.0,0.00027397,2]
[332205721,1721033466586,-413.556163,0.00027397,7]
[332205722,1721033466595,-413.556163,0.00027397,7]
[332205723,1721033466604,-501.98,0.00027397,2]
[332205724,1721033466615,-165.977123,0.00027397,7]
[332205725,1721033466625,-165.977123,0.00027397,7]
[332205726,1721033466635,-500.0,0.00027397,2]
[332205727,1721033466644,-702.26,0.00027397,2]
[332205728,1721033466654,-650.16,0.00027397,2]
[332205729,1721033466669,-715.41,0.00027397,2]
[332205730,1721033466678,-621.7,0.00027397,2]
[332205731,1721033466688,-500.0,0.00027397,2]
[332205732,1721033466698,-1392.42,0.00027397,2]
[332205733,1721033466708,-500.0,0.00027397,2]
[332205734,1721033466723,-791.68,0.00027397,2]
[332205735,1721033466734,-590.88,0.00027397,2]
[332205736,1721033466744,-590.88,0.00027397,2]
[332205737,1721033466754,-590.88,0.00027397,2]
[332205738,1721033466764,-590.88,0.00027397,2]
[332205739,1721033466773,-590.88,0.00027397,2]
[332205740,1721033466782,-590.88,0.00027397,2]
[332205741,1721033466792,-590.88,0.00027397,2]
[332205742,1721033466802,-590.88,0.00027397,2]
[332205743,1721033466813,-590.88,0.00027397,2]
[332205744,1721033466823,-590.88,0.00027397,2]
[332205745,1721033466832,-590.88,0.00027397,2]
[332205746,1721033466842,-500.0,0.00027397,2]
[332205747,1721033466852,-847.82,0.00027397,2]
[332205748,1721033466863,-540.06674061,0.00027397,2]
[332205749,1721033466872,-1832.53,0.00027397,2]
[332205750,1721033466881,-2808.39,0.00027397,2]
[332205751,1721033466891,-845.85,0.00027397,2]
[332205752,1721033466901,-1426.61,0.00027397,2]
[332205753,1721033466911,-2773.2,0.00027397,2]
[332205754,1721033466920,-596.49596165,0.00027397,2]
[332205755,1721033466930,-500.0,0.00027397,2]
[332205756,1721033466940,-500.0,0.00027397,2]
[332205757,1721033466950,-500.0,0.00027397,2]
[332205758,1721033466960,-500.0,0.00027397,2]
[332205759,1721033466970,-500.0,0.00027397,2]
[332205760,1721033466988,-841.56,0.00027397,2]
[332205761,1721033467004,-500.0,0.00027397,2]
[332205762,1721033467024,-616.71831334,0.00027397,2]
[332205763,1721033467044,-3850.77,0.00027397,2]
[332205764,1721033467061,-207.52641001,0.00027397,2]
[332205765,1721033467079,-500.0,0.00027397,2]
[332205766,1721033467094,-500.0,0.00027397,2]
[332205767,1721033467112,-500.0,0.00027397,2]
[332205768,1721033467132,-500.0,0.00027397,2]
[332205769,1721033467150,-664.91,0.00027397,2]
[332205770,1721033467163,-1626.76,0.00027397,2]
[332205771,1721033467180,-500.0,0.00027397,2]
[332205772,1721033467199,-765.72,0.00027397,2]
[332205773,1721033467215,-609.72,0.00027397,2]
[332205774,1721033467230,-21833.04,0.00027397,2]
[332205775,1721033467243,-500.0,0.00027397,2]
[332205776,1721033467258,-2439.81,0.00027397,2]
[332205777,1721033467273,-510.98,0.00027397,2]
[332205778,1721033467291,-240.2,0.00027397,2]
[332205779,1721033467305,-500.0,0.00027397,2]
[332205780,1721033467321,-500.0,0.00027397,2]
[332205781,1721033467336,-500.0,0.00027397,2]
[332205782,1721033467350,-500.0,0.00027397,2]
[332205783,1721033467366,-4417.13,0.00027397,2]
[332205784,1721033467381,-1034.76,0.00027397,2]
[332205785,1721033467397,-500.0,0.00027397,2]
[332205786,1721033467412,-780.19,0.00027397,2]
[332205787,1721033467427,-4687.31,0.00027397,2]
[332205788,1721033467443,-1264.1,0.00027397,2]
[332205789,1721033467457,-1390.09,0.00027397,2]
[332205790,1721033467473,-500.0,0.00027397,2]
[332205791,1721033467488,-500.0,0.00027397,2]
[332205792,1721033467505,-561.78,0.00027397,2]
[332205793,1721033467520,-500.0,0.00027397,2]
[332205794,1721033467533,-500.0,0.00027397,2]
[332205795,1721033467549,-500.0,0.00027397,2]
[332205796,1721033467564,-1296.16593656,0.00027397,2]
[332205797,1721033467578,-1296.16593656,0.00027397,2]
[332205798,1721033467592,-1296.16593656,0.00027397,2]
[332205799,1721033467608,-1296.16593656,0.00027397,2]
[332205800,1721033467629,-1296.16593656,0.00027397,2]
[332205801,1721033467642,-2212.25,0.00027397,2]
[332205802,1721033467652,-1296.16593656,0.00027397,2]
[332205803,1721033467667,-1296.16593656,0.00027397,2]
[332205804,1721033467678,-1296.16593656,0.00027397,2]
[332205805,1721033467689,-1296.16593656,0.00027397,2]
[332205806,1721033467699,-1296.16593656,0.00027397,2]
[332205807,1721033467709,-1296.16593656,0.00027397,2]
[332205808,1721033467719,-1296.16593656,0.00027397,2]
[332205809,1721033467730,-1296.16593656,0.00027397,2]
[332205810,1721033467741,-1296.16593656,0.00027397,2]
[332205811,1721033467752,-1296.16593656,0.00027397,2]
[332205812,1721033467762,-1296.16593656,0.00027397,2]
[332205813,1721033467772,-1296.16593656,0.00027397,2]
[332205814,1721033467932,-1296.16593656,0.00027397,2]
[332205815,1721033467948,-1296.16593656,0.00027397,2]
[332205816,1721033467959,-1296.16593656,0.00027397,2]
[332205817,1721033467969,-1296.16593656,0.00027397,2]
[332205818,1721033467979,-1296.16593656,0.00027397,2]
[332205819,1721033467989,-1296.16593656,0.00027397,2]
[332205820,1721033467999,-1296.16593656,0.00027397,2]
[332205821,1721033468008,-1296.16593656,0.00027397,2]
[332205822,1721033468017,-1296.16593656,0.00027397,2]
[332205823,1721033468027,-1296.16593656,0.00027397,2]
[332205824,1721033468036,-1296.16593656,0.00027397,2]
[332205825,1721033468047,-1296.16593656,0.00027397,2]
[332205826,1721033468056,-1296.16593656,0.00027397,2]
[332205827,1721033468066,-1296.16593656,0.00027397,2]
[332205828,1721033468075,-1296.16593656,0.00027397,2]
[332205829,1721033468084,-1296.16593656,0.00027397,2]
[332205830,1721033468094,-1296.16593656,0.00027397,2]
[332205831,1721033468104,-1296.16593656,0.00027397,2]
[332205832,1721033468119,-1296.16593656,0.00027397,2]
[332205833,1721033468129,-1296.16593656,0.00027397,2]
[332205834,1721033468139,-1296.16593656,0.00027397,2]
[332205835,1721033468149,-1296.16593656,0.00027397,2]
[332205836,1721033468158,-1296.16593656,0.00027397,2]
[332205837,1721033468168,-1296.16593656,0.00027397,2]
[332205838,1721033468177,-500.0,0.00027397,2]
[332205839,1721033468187,-1296.16593656,0.00027397,2]
[332205840,1721033468197,-1296.16593656,0.00027397,2]
[332205841,1721033468207,-1296.16593656,0.00027397,2]
[332205842,1721033468216,-1296.16593656,0.00027397,2]
[332205843,1721033468225,-1296.16593656,0.00027397,2]
[332205844,1721033468235,-1296.16593656,0.00027397,2]
[332205845,1721033468244,-1296.16593656,0.00027397,2]
[332205846,1721033468253,-1296.16593656,0.00027397,2]
[332205847,1721033468262,-1296.16593656,0.00027397,2]
[332205848,1721033468272,-1296.16593656,0.00027397,2]
[332205849,1721033468282,-1296.16593656,0.00027397,2]
[332205850,1721033468291,-1296.16593656,0.00027397,2]
[332205851,1721033468300,-1296.16593656,0.00027397,2]
[332205852,1721033468309,-1296.16593656,0.00027397,2]
[332205853,1721033468319,-1296.16593656,0.00027397,2]
[332205854,1721033468328,-1296.16593656,0.00027397,2]
[332205855,1721033468338,-1279.44121479,0.00027397,2]
[332205856,1721033468348,-1279.44121479,0.00027397,2]
[332205857,1721033468357,-1279.44121479,0.00027397,2]
[332205858,1721033468370,-1279.44121479,0.00027397,2]
[332205859,1721033468379,-1279.44121479,0.00027397,2]
[332205860,1721033468389,-1279.44121479,0.00027397,2]
[332205861,1721033468399,-1279.44121479,0.00027397,2]
[332205862,1721033468408,-1279.44121479,0.00027397,2]
[332205863,1721033468418,-1279.44121479,0.00027397,2]
[332205864,1721033468427,-1279.44121479,0.00027397,2]
[332205865,1721033468437,-1279.44121479,0.00027397,2]
[332205866,1721033468447,-1279.44121479,0.00027397,2]
[332205867,1721033468457,-1279.44121479,0.00027397,2]
[332205868,1721033468467,-1279.44121479,0.00027397,2]
[332205869,1721033468476,-1279.44121479,0.00027397,2]
[332205870,1721033468486,-1279.44121479,0.00027397,2]
[332205871,1721033468496,-1279.44121479,0.00027397,2]
[332205872,1721033468505,-1279.44121479,0.00027397,2]
[332205873,1721033468515,-1279.44121479,0.00027397,2]
[332205874,1721033468524,-1279.44121479,0.00027397,2]
[332205875,1721033468534,-1279.44121479,0.00027397,2]
[332205876,1721033468543,-1279.44121479,0.00027397,2]
[332205877,1721033468553,-1279.44121479,0.00027397,2]
[332205878,1721033468562,-1279.44121479,0.00027397,2]
[332205879,1721033468571,-1279.44121479,0.00027397,2]
[332205880,1721033468580,-1279.44121479,0.00027397,2]
[332205881,1721033468589,-1279.44121479,0.00027397,2]
[332205882,1721033468598,-1279.44121479,0.00027397,2]
[332205883,1721033468607,-6250.0,0.00027397,120]
[332205884,1721033468619,-175.5061073,0.000274,2]
[332205885,1721033468629,-927.94601428,0.00027427,2]
[332205886,1721033468639,-154.59445059,0.00027437,2]
[332205887,1721033468648,-215.5,0.00027439,2]
[332205888,1721033468661,-151.0,0.00027439,2]
[332205889,1721033468670,-150.18278731,0.00027448,2]
[332205890,1721033468680,-43698.03022018,0.000275,2]
[332205891,1721033468689,-152.24106769,0.00027512,2]
[332205892,1721033468698,-150.18278731,0.00027517,2]
[332205893,1721033468707,-399.96117285,0.00027561,2]
[332205894,1721033468717,-153.93810722,0.00027576,2]
[332205895,1721033468727,-2500.0,0.000276,2]
[332205896,1721033468736,-165.191516,0.000276,2]
[332205897,1721033468745,-165.191512,0.000276,2]
[332205898,1721033468755,-413.556163,0.000276,7]
[332205899,1721033468764,-413.556165,0.000276,7]
[332205900,1721033468773,-165.977123,0.000276,7]
[332205901,1721033468784,-165.977117,0.000276,7]
[332205902,1721033468794,-156.0,0.0002767,13]
[332205903,1721033468803,-708.24,0.00027671,4]
[332205904,1721033468812,-500.0,0.00027671,2]
[332205905,1721033468822,-500.0,0.00027671,2]
[332205906,1721033468831,-501.98,0.00027671,2]
[332205907,1721033468841,-500.0,0.00027671,2]
[332205908,1721033468851,-702.26,0.00027671,2]
[332205909,1721033468861,-650.16,0.00027671,2]
[332205910,1721033468871,-715.41,0.00027671,2]
[332205911,1721033468881,-621.7,0.00027671,2]
[332205912,1721033468892,-500.0,0.00027671,2]
[332205913,1721033468902,-1392.42,0.00027671,2]
[332205914,1721033468912,-500.0,0.00027671,2]
[332205915,1721033468922,-791.68,0.00027671,2]
[332205916,1721033468934,-590.88,0.00027671,2]
[332205917,1721033468945,-500.0,0.00027671,2]
[332205918,1721033468956,-847.82,0.00027671,2]
[332205919,1721033468967,-1832.53,0.00027671,2]
[332205920,1721033468978,-2808.39,0.00027671,2]
[332205921,1721033468989,-845.85,0.00027671,2]
[332205922,1721033468998,-1426.61,0.00027671,2]
[332205923,1721033469007,-2773.2,0.00027671,2]
[332205924,1721033469017,-500.0,0.00027671,2]
[332205925,1721033469027,-500.0,0.00027671,2]
[332205926,1721033469037,-500.0,0.00027671,2]
[332205927,1721033469048,-500.0,0.00027671,2]
[332205928,1721033469059,-500.0,0.00027671,2]
[332205929,1721033469069,-841.56,0.00027671,2]
[332205930,1721033469078,-629.09067598,0.00027671,2]
[332205931,1721033469087,-3850.77,0.00027671,2]
[332205932,1721033469097,-500.0,0.00027671,2]
[332205933,1721033469106,-500.0,0.00027671,2]
[332205934,1721033469118,-500.0,0.00027671,2]